[Event "106th British-ch 2019"]
[Site "Torquay"]
[Date "2019.08.02"]
[Round "7.6"]
[White "Wadsworth, Matthew J"]
[Black "Fernandez, Daniel Howard"]
[Result "1/2-1/2"]
[ECO "A16"]
[WhiteElo "2418"]
[BlackElo "2466"]
[Annotator "ChessBase"]
[PlyCount "122"]
[EventDate "2019.07.27"]
[EventType "swiss"]
[EventCountry "GBR"]
[SourceTitle "playchess.com"]
[Source "ChessBase"]
[SourceQuality "1"]
[TimeControl "40/5400+30:1800+30"]

1. Nf3 {[%emt 0:10:15]} d6 {[%emt 0:03:32]} 2. c4 {[%emt 0:00:34]} g6 {[%emt 0:06:06]} 3. g3 {[%emt 0:00:15]} Bg7 {[%emt 0:00:03]} 4. Bg2 {[%emt 0:00:15]} Nf6 {[%emt 0:02:05]} 5. O-O {[%emt 0:00:13]} O-O {[%emt 0:00:03]} 6. Nc3 {[%emt 0:00:41]} a6 {[%emt 0:01:24]} 7. Rb1 {[%emt 0:01:37]} c6 {[%emt 0:04:57]} 8. b4 {[%emt 0:10:31]} d5 {[%emt 0:02:10]} 9. c5 {[%emt 0:05:50]} b5 {[%emt 0:02:53]} 10. cxb6 {[%emt 0:01:05]} Nbd7 {[%emt 0:00:50]} 11. a4 {[%emt 0:04:20]} Qxb6 {[%emt 0:02:25]} 12. a5 {[%emt 0:00:30]} Qc7 {[%emt 0:04:48]} 13. d4 {[%emt 0:01:56]} e5 {[%emt 0:00:07]} 14. Na4 {[%emt 0:04:10]} Ne4 {[%emt 0:01:52]} 15. dxe5 {[%emt 0:02:46]} Nxe5 {[%emt 0:00:14]} 16. Bf4 {[%emt 0:05:18]} Rb8 {[%emt 0:01:44]} 17. Qc1 {[%emt 0:03:09]} Re8 {[%emt 0:15:44]} 18. Nd4 {[%emt 0:02:46]} Bd7 {[%emt 0:02:18]} 19. Bxe4 {[%emt 0:04:03]} dxe4 {[%emt 0:00:02]} 20. Nc5 {[%emt 0:00:08]} Qa7 {[%emt 0:06:02]} 21. Rd1 {[%emt 0:00:40]} Rbc8 {[%emt 0:00:13]} 22. Nxe4 {[%emt 0:04:21]} Nd3 {[%emt 0:02:00]} 23. exd3 {[%emt 0:01:58]} Bxd4 {[%emt 0:00:08]} 24. Be3 {[%emt 0:01:23]} Red8 {[%emt 0:01:20]} 25. Bxd4 {[%emt 0:14:02]} Qxd4 {[%emt 0:00:03]} 26. Qb2 {[%emt 0:00:09]} Qxb2 {[%emt 0:03:55]} 27. Rxb2 {[%emt 0:00:06]} Be6 {[%emt 0:00:06]} 28. Nc5 {[%emt 0:04:06]} Bc4 {[%emt 0:00:02]} 29. Rbd2 {[%emt 0:01:38]} Bb5 {[%emt 0:00:12]} 30. d4 {[%emt 0:00:09]} Kg7 {[%emt 0:03:07]} 31. f3 {[%emt 0:07:46]} Rd5 {[%emt 0:04:18]} 32. Ne4 {[%emt 0:00:32]} Rb8 {[%emt 0:01:01]} 33. Nc3 {[%emt 0:01:52]} Rd6 {[%emt 0:05:29]} 34. Rb1 {[%emt 0:04:28]} Bc4 {[%emt 0:05:07]} 35. Kf2 {[%emt 0:01:47]} Rbd8 {[%emt 0:00:11]} 36. Rbd1 {[%emt 0:00:12]} Bb3 {[%emt 0:00:09]} 37. Rb1 {[%emt 0:00:16]} Bc4 {[%emt 0:00:02]} 38. h4 {[%emt 0:01:13]} h6 {[%emt 0:01:50]} 39. Rc1 {[%emt 0:00:39]} g5 {[%emt 0:02:22]} 40. hxg5 {[%emt 0:00:50]} hxg5 {[%emt 0:00:02]} 41. Rh1 {[%emt 0:08:57]} f5 {[%emt 0:03:44]} 42. Ne2 {[%emt 0:10:08]} Rb8 {[%emt 0:03:28]} 43. Rb2 {[%emt 0:02:01]} Re8 {[%emt 0:03:11]} 44. Rd2 {[%emt 0:02:38]} Rde6 {[%emt 0:04:39]} 45. Nc3 {[%emt 0:00:43]} Rb8 {[%emt 0:01:53]} 46. Rb2 {[%emt 0:02:09]} Rd6 {[%emt 0:02:05]} 47. Ne2 {[%emt 0:00:35]} Bb5 {[%emt 0:11:35]} 48. Nc3 {[%emt 0:02:01]} Rxd4 {[%emt 0:01:05]} 49. Nxb5 {[%emt 0:00:04]} Rxb5 {[%emt 0:00:53]} 50. Rc1 {[%emt 0:00:20]} Rd6 {[%emt 0:02:32]} 51. Rc4 {[%emt 0:01:43]} Kf6 {[%emt 0:03:01]} 52. Rbc2 {[%emt 0:02:35]} Ke6 {[%emt 0:01:39]} 53. Rxc6 {[%emt 0:01:29]} Rxb4 {[%emt 0:00:05]} 54. Re2+ {[%emt 0:00:29]} Kd5 {[%emt 0:03:36]} 55. Rxd6+ {[%emt 0:00:06]} Kxd6 {[%emt 0:00:06]} 56. Re8 {[%emt 0:00:03]} Rb2+ {[%emt 0:01:52]} 57. Ke3 {[%emt 0:00:27]} Rg2 {[%emt 0:00:31]} 58. Ra8 {[%emt 0:01:50]} Rxg3 {[%emt 0:00:20]} 59. Kf2 {[%emt 0:00:00]} Rh3 {[%emt 0:00:12]} 60. Rxa6+ {[%emt 0:00:16]} Ke5 {[%emt 0:00:01]} 61. Rb6 {[%emt 0:00:26]} g4 {[%emt 0:01:31]} 1/2-1/2

[Event "106th British-ch 2019"]
[Site "Torquay"]
[Date "2019.08.02"]
[Round "7.7"]
[White "Lane, Gary W"]
[Black "Haria, Ravi"]
[Result "0-1"]
[ECO "C03"]
[WhiteElo "2364"]
[BlackElo "2430"]
[Annotator "NA"]
[PlyCount "76"]
[EventDate "2019.07.27"]
[EventType "swiss"]
[EventCountry "GBR"]
[SourceTitle "playchess.com"]
[Source "ChessBase"]
[SourceQuality "1"]
[TimeControl "40/5400+30:1800+30"]

1. e4 {[%emt 0:00:45]} e6 {[%emt 0:00:00]} 2. d4 {[%emt 0:00:10]} d5 {[%emt 0:00:00]} 3. Nd2 {[%emt 0:00:05]} h6 {[%emt 0:00:00]} 4. Bd3 {[%emt 0:02:36]} c5 {[%emt 0:00:38]} 5. c3 {[%emt 0:05:55]} cxd4 {[%emt 0:03:40]} 6. cxd4 {[%emt 0:00:06]} Nc6 {[%emt 0:00:05]} 7. Ngf3 {[%emt 0:00:17]} dxe4 {[%emt 0:00:46]} 8. Nxe4 {[%emt 0:00:04]} Nf6 {[%emt 0:01:07]} 9. O-O {[%emt 0:05:11]} Be7 {[%emt 0:00:32]} 10. a3 {[%emt 0:02:53]} O-O {[%emt 0:08:04]} 11. Re1 {[%emt 0:03:55]} Nxd4 {[%emt 0:07:13]} 12. Ne5 {[%emt 0:02:46]} Nd7 {[%emt 0:16:09]} 13. Bf4 {[%emt 0:05:01]} Nxe5 {[%emt 0:05:09]} 14. Bxe5 {[%emt 0:00:06]} Nc6 {[%emt 0:03:27]} 15. Bc3 {[%emt 0:03:35]} Qd5 {[%emt 0:05:24]} 16. Re3 {[%emt 0:10:31]} f5 {[%emt 0:21:35]} 17. Nd2 {[%emt 0:45:13]} Bg5 {[%emt 0:06:58]} 18. Rg3 {[%emt 0:03:42]} Ne5 {[%emt 0:03:25]} 19. Qe2 {[%emt 0:01:02]} Bf4 {[%emt 0:03:23]} 20. Rh3 {[%emt 0:01:23]} Rd8 {[%emt 0:00:40]} 21. Bc2 {[%emt 0:01:39]} Bd7 {[%emt 0:05:50]} 22. Bb3 {[%emt 0:01:11]} Qc5 {[%emt 0:00:39]} 23. Nf3 {[%emt 0:00:35]} Bb5 {[%emt 0:02:46]} 24. Bxe6+ {[%emt 0:00:08]} Kh8 {[%emt 0:00:21]} 25. Qc2 {[%emt 0:00:22]} Bd3 {[%emt 0:02:08]} 26. Qb3 {[%emt 0:00:26]} Ng4 {[%emt 0:00:37]} 27. Be1 {[%emt 0:01:51]} Be4 {[%emt 0:01:13]} 28. Nh4 {[%emt 0:00:27]} Kh7 {[%emt 0:01:00]} 29. Bf7 {[%emt 0:01:29]} Rd6 {[%emt 0:00:11]} 30. Nf3 {[%emt 0:00:47]} Rad8 {[%emt 0:00:46]} 31. Rh4 {[%emt 0:00:28]} Bc2 {[%emt 0:00:56]} 32. Qc3 {[%emt 0:00:49]} Qxc3 {[%emt 0:00:12]} 33. bxc3 {[%emt 0:00:31]} g5 {[%emt 0:00:31]} 34. Rh3 {[%emt 0:00:15]} Rd1 {[%emt 0:00:14]} 35. Ra2 {[%emt 0:00:33]} Ne5 {[%emt 0:01:08]} 36. Rxc2 {[%emt 0:00:15]} Nxf3+ {[%emt 0:00:05]} 37. gxf3 {[%emt 0:00:01]} Rxe1+ {[%emt 0:00:07]} 38. Kg2 {[%emt 0:00:03]} Rdd1 {[%emt 0:00:14]} 0-1

[Event "106th British-ch 2019"]
[Site "Torquay"]
[Date "2019.08.02"]
[Round "7.8"]
[White "Bradbury, Neil H"]
[Black "Arkell, Keith C"]
[Result "0-1"]
[ECO "E11"]
[WhiteElo "2322"]
[BlackElo "2461"]
[Annotator "ChessBase"]
[PlyCount "78"]
[EventDate "2019.07.27"]
[EventType "swiss"]
[EventCountry "GBR"]
[SourceTitle "playchess.com"]
[Source "ChessBase"]
[SourceQuality "1"]
[TimeControl "40/5400+30:1800+30"]

1. d4 {[%emt 0:00:01]} Nf6 {[%emt 0:00:00]} 2. c4 {[%emt 0:00:05]} e6 {[%emt 0:00:00]} 3. Nf3 {[%emt 0:01:10]} Bb4+ {[%emt 0:00:11]} 4. Nbd2 {[%emt 0:02:09]} d5 {[%emt 0:00:26]} 5. Qa4+ {[%emt 0:02:21]} Nc6 {[%emt 0:00:05]} 6. e3 {[%emt 0:00:24]} O-O {[%emt 0:00:20]} 7. a3 {[%emt 0:05:12]} Bxd2+ {[%emt 0:00:19]} 8. Bxd2 {[%emt 0:00:06]} Ne4 {[%emt 0:00:07]} 9. Qc2 {[%emt 0:01:37]} Nxd2 {[%emt 0:00:53]} 10. Qxd2 {[%emt 0:00:10]} a5 {[%emt 0:00:41]} 11. b3 {[%emt 0:04:50]} Qe7 {[%emt 0:00:16]} 12. Qb2 {[%emt 0:03:40]} Bd7 {[%emt 0:05:34]} 13. Be2 {[%emt 0:06:16]} f6 {[%emt 0:00:08]} 14. O-O {[%emt 0:00:24]} Be8 {[%emt 0:00:09]} 15. Nd2 {[%emt 0:02:14]} Bf7 {[%emt 0:00:32]} 16. Bf3 {[%emt 0:04:42]} Rfd8 {[%emt 0:01:26]} 17. cxd5 {[%emt 0:01:51]} exd5 {[%emt 0:00:03]} 18. Rfc1 {[%emt 0:02:37]} Qd6 {[%emt 0:15:28]} 19. Qc3 {[%emt 0:01:00]} h5 {[%emt 0:01:05]} 20. Qc5 {[%emt 0:06:56]} Rdc8 {[%emt 0:09:32]} 21. h4 {[%emt 0:22:32]} Qxc5 {[%emt 0:00:24]} 22. Rxc5 {[%emt 0:00:05]} Ne7 {[%emt 0:00:13]} 23. Rac1 {[%emt 0:00:16]} c6 {[%emt 0:00:05]} 24. g3 {[%emt 0:02:33]} Kf8 {[%emt 0:00:41]} 25. R5c3 {[%emt 0:06:06]} Ke8 {[%emt 0:03:25]} 26. e4 {[%emt 0:05:20]} Rd8 {[%emt 0:02:02]} 27. Re1 {[%emt 0:02:03]} Kf8 {[%emt 0:01:37]} 28. exd5 {[%emt 0:03:28]} Nxd5 {[%emt 0:00:05]} 29. Rc5 {[%emt 0:00:30]} Ne7 {[%emt 0:07:14]} 30. Nc4 {[%emt 0:04:09]} b5 {[%emt 0:01:06]} 31. Ne3 {[%emt 0:03:40]} Rxd4 {[%emt 0:01:58]} 32. Bxc6 {[%emt 0:03:40]} Nxc6 {[%emt 0:01:37]} 33. Rxc6 {[%emt 0:00:01]} Bxb3 {[%emt 0:00:24]} 34. Rc5 {[%emt 0:00:20]} b4 {[%emt 0:06:08]} 35. axb4 {[%emt 0:02:24]} a4 {[%emt 0:01:26]} 36. b5 {[%emt 0:01:29]} a3 {[%emt 0:01:22]} 37. Rc3 {[%emt 0:01:17]} Rb4 {[%emt 0:00:29]} 38. Ra1 {[%emt 0:00:29]} a2 {[%emt 0:00:39]} 39. Kg2 {[%emt 0:00:25]} Rxb5 {[%emt 0:01:13]} 0-1

[Event "106th British-ch 2019"]
[Site "Torquay"]
[Date "2019.08.02"]
[Round "7.9"]
[White "Ward, Chris G"]
[Black "Derakhshani, Borna"]
[Result "0-1"]
[ECO "D70"]
[WhiteElo "2418"]
[BlackElo "2300"]
[Annotator "NA"]
[PlyCount "65"]
[EventDate "2019.07.27"]
[EventType "swiss"]
[EventCountry "GBR"]
[SourceTitle "playchess.com"]
[Source "ChessBase"]
[SourceQuality "1"]
[TimeControl "40/5400+30:1800+30"]

1. d4 {[%emt 0:00:17]} Nf6 {[%emt 0:07:36]} 2. c4 {[%emt 0:00:08]} g6 {[%emt 0:00:11]} 3. f3 {[%emt 0:00:07]} d5 {[%emt 0:00:17]} 4. cxd5 {[%emt 0:00:06]} Nxd5 {[%emt 0:00:06]} 5. e4 {[%emt 0:00:06]} Nb6 {[%emt 0:00:08]} 6. a4 {[%emt 0:00:09]} a5 {[%emt 0:01:47]} 7. Nc3 {[%emt 0:00:07]} Bg7 {[%emt 0:00:16]} 8. Be3 {[%emt 0:00:06]} Nc6 {[%emt 0:02:36]} 9. Bb5 {[%emt 0:03:52]} O-O {[%emt 0:00:41]} 10. Nge2 {[%emt 0:22:37]} Nb4 {[%emt 0:02:02]} 11. b3 {[%emt 0:26:53]} c6 {[%emt 0:03:37]} 12. Bc4 {[%emt 0:00:40]} e5 {[%emt 0:04:01]} 13. d5 {[%emt 0:00:22]} cxd5 {[%emt 0:00:22]} 14. Bxb6 {[%emt 0:00:14]} Qxb6 {[%emt 0:00:05]} 15. Nxd5 {[%emt 0:00:28]} Nxd5 {[%emt 0:00:07]} 16. Bxd5 {[%emt 0:00:19]} Rd8 {[%emt 0:03:36]} 17. Qd3 {[%emt 0:07:38]} Be6 {[%emt 0:03:18]} 18. Rd1 {[%emt 0:18:07]} Rac8 {[%emt 0:00:28]} 19. g4 {[%emt 0:04:28]} h5 {[%emt 0:13:53]} 20. gxh5 {[%emt 0:02:36]} Bf8 {[%emt 0:00:01]} 21. hxg6 {[%emt 0:08:50]} Bb4+ {[%emt 0:01:01]} 22. Rd2 {[%emt 0:00:04]} Bxd5 {[%emt 0:02:24]} 23. exd5 {[%emt 0:00:24]} Qxg6 {[%emt 0:01:29]} 24. Kf2 {[%emt 0:02:32]} Qb6+ {[%emt 0:03:39]} 25. Kf1 {[%emt 0:00:30]} Bxd2 {[%emt 0:00:16]} 26. Rg1+ {[%emt 0:00:21]} Kf8 {[%emt 0:00:32]} 27. Qxd2 {[%emt 0:00:35]} Qf6 {[%emt 0:01:23]} 28. Rg3 {[%emt 0:00:47]} Rc5 {[%emt 0:00:43]} 29. Nc3 {[%emt 0:00:19]} Qf4 {[%emt 0:00:36]} 30. Qe1 {[%emt 0:00:45]} Rdc8 {[%emt 0:01:05]} 31. Ne2 {[%emt 0:00:08]} Qe3 {[%emt 0:02:43]} 32. f4 {[%emt 0:00:17]} Qe4 {[%emt 0:00:01]} 33. fxe5 {[%emt 0:01:37]} 0-1

[Event "106th British-ch 2019"]
[Site "Torquay"]
[Date "2019.08.02"]
[Round "7.10"]
[White "Toma, Katarzyna"]
[Black "Eggleston, David J"]
[Result "0-1"]
[ECO "C11"]
[WhiteElo "2229"]
[BlackElo "2399"]
[Annotator "NA"]
[PlyCount "78"]
[EventDate "2019.07.27"]
[EventType "swiss"]
[EventCountry "GBR"]
[SourceTitle "playchess.com"]
[Source "ChessBase"]
[SourceQuality "1"]
[TimeControl "40/5400+30:1800+30"]

1. e4 {[%emt 0:02:16]} e6 {[%emt 0:03:14]} 2. d4 {[%emt 0:00:04]} d5 {[%emt 0:00:05]} 3. Nc3 {[%emt 0:00:07]} Nf6 {[%emt 0:00:18]} 4. e5 {[%emt 0:00:16]} Nfd7 {[%emt 0:00:06]} 5. Nce2 {[%emt 0:00:07]} c5 {[%emt 0:00:11]} 6. c3 {[%emt 0:00:05]} cxd4 {[%emt 0:00:05]} 7. cxd4 {[%emt 0:00:23]} f6 {[%emt 0:00:11]} 8. Nf4 {[%emt 0:12:28]} Bb4+ {[%emt 0:00:28]} 9. Bd2 {[%emt 0:00:04]} Bxd2+ {[%emt 0:00:05]} 10. Qxd2 {[%emt 0:00:04]} Qe7 {[%emt 0:00:12]} 11. Nf3 {[%emt 0:00:08]} fxe5 {[%emt 0:02:04]} 12. dxe5 {[%emt 0:00:05]} Nc6 {[%emt 0:03:04]} 13. Nd3 {[%emt 0:00:08]} O-O {[%emt 0:03:45]} 14. Be2 {[%emt 0:00:28]} b6 {[%emt 0:09:08]} 15. O-O {[%emt 0:07:39]} Bb7 {[%emt 0:01:26]} 16. b4 {[%emt 0:05:05]} Ba6 {[%emt 0:05:34]} 17. Rac1 {[%emt 0:05:29]} Rac8 {[%emt 0:05:26]} 18. Rfe1 {[%emt 0:04:27]} Bxd3 {[%emt 0:05:36]} 19. Bxd3 {[%emt 0:00:05]} Nxb4 {[%emt 0:16:09]} 20. Bb1 {[%emt 0:00:17]} Nc6 {[%emt 0:03:44]} 21. Rc3 {[%emt 0:00:14]} g6 {[%emt 0:02:30]} 22. Ng5 {[%emt 0:20:22]} Ncxe5 {[%emt 0:06:33]} 23. Rh3 {[%emt 0:00:15]} h5 {[%emt 0:20:58]} 24. f4 {[%emt 0:03:03]} Qc5+ {[%emt 0:01:36]} 25. Kh1 {[%emt 0:00:35]} Ng4 {[%emt 0:00:17]} 26. Rf3 {[%emt 0:00:06]} Rf6 {[%emt 0:01:58]} 27. h3 {[%emt 0:02:24]} Nh6 {[%emt 0:00:02]} 28. Nxe6 {[%emt 0:00:21]} Qa5 {[%emt 0:02:35]} 29. Qe3 {[%emt 0:09:28]} Re8 {[%emt 0:01:35]} 30. f5 {[%emt 0:00:25]} d4 {[%emt 0:00:09]} 31. Qc1 {[%emt 0:07:42]} Nxf5 {[%emt 0:00:35]} 32. Ref1 {[%emt 0:07:45]} Rexe6 {[%emt 0:00:11]} 33. Bxf5 {[%emt 0:00:06]} gxf5 {[%emt 0:00:27]} 34. Rg3+ {[%emt 0:07:31]} Rg6 {[%emt 0:01:51]} 35. Qc4 {[%emt 0:00:12]} Kh7 {[%emt 0:01:41]} 36. Rxg6 {[%emt 0:06:10]} Rxg6 {[%emt 0:00:01]} 37. Qf7+ {[%emt 0:00:08]} Rg7 {[%emt 0:00:06]} 38. Qxh5+ {[%emt 0:00:04]} Kg8 {[%emt 0:00:07]} 39. Rxf5 {[%emt 0:01:26]} Qe1+ {[%emt 0:00:05]} 0-1

[Event "106th British-ch 2019"]
[Site "Torquay"]
[Date "2019.08.02"]
[Round "7.11"]
[White "Pigott, John C"]
[Black "Rudd, Jack"]
[Result "0-1"]
[ECO "E63"]
[WhiteElo "2384"]
[BlackElo "2275"]
[Annotator "NA"]
[PlyCount "98"]
[EventDate "2019.07.27"]
[EventType "swiss"]
[EventCountry "GBR"]
[SourceTitle "playchess.com"]
[Source "ChessBase"]
[SourceQuality "1"]
[TimeControl "40/5400+30:1800+30"]

1. c4 {[%emt 0:00:00]} Nf6 {[%emt 0:00:00]} 2. g3 {[%emt 0:03:57]} g6 {[%emt 0:00:00]} 3. Bg2 {[%emt 0:00:18]} Bg7 {[%emt 0:00:00]} 4. Nc3 {[%emt 0:00:39]} O-O {[%emt 0:00:09]} 5. d4 {[%emt 0:00:12]} d6 {[%emt 0:00:09]} 6. Nf3 {[%emt 0:00:15]} Nc6 {[%emt 0:00:08]} 7. O-O {[%emt 0:00:11]} a6 {[%emt 0:00:04]} 8. b3 {[%emt 0:01:24]} Rb8 {[%emt 0:00:48]} 9. d5 {[%emt 0:01:56]} Na5 {[%emt 0:00:12]} 10. Bg5 {[%emt 0:00:15]} c5 {[%emt 0:01:32]} 11. dxc6 {[%emt 0:00:10]} bxc6 {[%emt 0:01:07]} 12. c5 {[%emt 0:04:07]} d5 {[%emt 0:03:29]} 13. Bf4 {[%emt 0:09:36]} Rb7 {[%emt 0:01:44]} 14. Be5 {[%emt 0:03:46]} Re8 {[%emt 0:04:29]} 15. Qd4 {[%emt 0:16:59]} Nh5 {[%emt 0:05:43]} 16. Bxg7 {[%emt 0:22:24]} Nxg7 {[%emt 0:00:09]} 17. e4 {[%emt 0:00:35]} Ne6 {[%emt 0:05:37]} 18. Qd1 {[%emt 0:01:47]} d4 {[%emt 0:03:01]} 19. Na4 {[%emt 0:00:33]} Rb5 {[%emt 0:02:02]} 20. Rc1 {[%emt 0:02:44]} Qd7 {[%emt 0:02:46]} 21. Ne5 {[%emt 0:04:42]} Qc7 {[%emt 0:00:32]} 22. Nd3 {[%emt 0:00:25]} Rd8 {[%emt 0:02:45]} 23. Qd2 {[%emt 0:01:36]} Nb7 {[%emt 0:03:46]} 24. Rfd1 {[%emt 0:01:51]} f6 {[%emt 0:02:41]} 25. f4 {[%emt 0:01:26]} Ng7 {[%emt 0:00:27]} 26. e5 {[%emt 0:02:25]} Nf5 {[%emt 0:00:26]} 27. Re1 {[%emt 0:02:15]} Ne3 {[%emt 0:01:08]} 28. Bf3 {[%emt 0:00:41]} Bf5 {[%emt 0:01:39]} 29. exf6 {[%emt 0:01:30]} exf6 {[%emt 0:00:10]} 30. Nb4 {[%emt 0:02:11]} Na5 {[%emt 0:03:49]} 31. Nxa6 {[%emt 0:01:43]} Qc8 {[%emt 0:02:00]} 32. Nb6 {[%emt 0:00:43]} Qxa6 {[%emt 0:00:45]} 33. Rxe3 {[%emt 0:00:37]} Rxc5 {[%emt 0:01:02]} 34. Rxc5 {[%emt 0:09:26]} Qxb6 {[%emt 0:00:09]} 35. Qxa5 {[%emt 0:01:00]} Qxa5 {[%emt 0:00:08]} 36. Rxa5 {[%emt 0:01:02]} dxe3 37. Rc5 {[%emt 0:01:26]} Be4 {[%emt 0:00:46]} 38. Be2 {[%emt 0:00:32]} Rd2 {[%emt 0:00:13]} 39. Kf1 {[%emt 0:00:30]} Rxa2 {[%emt 0:00:10]} 40. Rc1 {[%emt 0:00:14]} Rb2 {[%emt 0:00:20]} 41. Bc4+ {[%emt 0:02:54]} Bd5 {[%emt 0:03:14]} 42. Rc3 {[%emt 0:03:15]} Rxh2 {[%emt 0:01:01]} 43. Bxd5+ {[%emt 0:02:19]} cxd5 {[%emt 0:00:08]} 44. Rxe3 {[%emt 0:00:04]} Kf7 {[%emt 0:00:08]} 45. Ke1 {[%emt 0:04:22]} h5 {[%emt 0:01:12]} 46. Kd1 {[%emt 0:01:33]} h4 {[%emt 0:02:16]} 47. gxh4 {[%emt 0:02:07]} Rxh4 {[%emt 0:00:11]} 48. f5 {[%emt 0:00:30]} Rd4+ {[%emt 0:01:09]} 49. Kc2 {[%emt 0:01:24]} g5 {[%emt 0:00:37]} 0-1

[Event "106th British-ch 2019"]
[Site "Torquay"]
[Date "2019.08.02"]
[Round "7.12"]
[White "Bates, Richard A"]
[Black "Storey, Charles H"]
[Result "1/2-1/2"]
[ECO "A40"]
[WhiteElo "2352"]
[BlackElo "2261"]
[Annotator "NA"]
[PlyCount "57"]
[EventDate "2019.07.27"]
[EventType "swiss"]
[EventCountry "GBR"]
[SourceTitle "playchess.com"]
[Source "ChessBase"]
[SourceQuality "1"]
[TimeControl "40/5400+30:1800+30"]

1. d4 {[%emt 0:02:12]} g6 {[%emt 0:00:00]} 2. Nf3 {[%emt 0:00:33]} Bg7 {[%emt 0:00:00]} 3. g3 {[%emt 0:00:30]} c5 {[%emt 0:00:00]} 4. d5 {[%emt 0:01:43]} b5 {[%emt 0:00:42]} 5. e4 {[%emt 0:01:52]} Nf6 {[%emt 0:04:42]} 6. e5 {[%emt 0:12:29]} Ng4 {[%emt 0:04:47]} 7. Qe2 {[%emt 0:05:43]} b4 {[%emt 0:02:44]} 8. c4 {[%emt 0:07:43]} O-O {[%emt 0:07:45]} 9. h3 {[%emt 0:06:34]} Nh6 {[%emt 0:00:09]} 10. Bg2 {[%emt 0:01:09]} d6 {[%emt 0:00:30]} 11. O-O {[%emt 0:05:01]} Nf5 {[%emt 0:02:01]} 12. Bf4 {[%emt 0:06:19]} Nd7 {[%emt 0:16:08]} 13. exd6 {[%emt 0:15:47]} Nxd6 {[%emt 0:05:38]} 14. a3 {[%emt 0:02:57]} Rb8 {[%emt 0:05:04]} 15. axb4 {[%emt 0:00:52]} Rxb4 {[%emt 0:00:15]} 16. Rxa7 {[%emt 0:04:20]} Nxc4 {[%emt 0:04:47]} 17. b3 {[%emt 0:04:10]} Qb6 {[%emt 0:02:21]} 18. Ra4 {[%emt 0:05:42]} Rxb3 {[%emt 0:02:16]} 19. Rxc4 {[%emt 0:00:19]} Rxb1 {[%emt 0:01:09]} 20. Rxb1 {[%emt 0:00:19]} Qxb1+ {[%emt 0:00:07]} 21. Rc1 {[%emt 0:00:09]} Qb3 {[%emt 0:06:41]} 22. Qxe7 {[%emt 0:03:04]} Qxd5 {[%emt 0:15:50]} 23. Ne5 {[%emt 0:00:57]} Qd4 {[%emt 0:01:57]} 24. Nxd7 {[%emt 0:03:56]} Qxd7 {[%emt 0:01:54]} 25. Qxd7 {[%emt 0:01:00]} Bxd7 {[%emt 0:00:22]} 26. Rxc5 {[%emt 0:00:09]} Re8 {[%emt 0:00:55]} 27. Be3 {[%emt 0:02:13]} Be5 {[%emt 0:00:27]} 28. Kh2 {[%emt 0:00:32]} h5 {[%emt 0:00:20]} 29. h4 {[%emt 0:00:36]} 1/2-1/2

[Event "106th British-ch 2019"]
[Site "Torquay"]
[Date "2019.08.02"]
[Round "7.13"]
[White "Smith, Andrew Philip"]
[Black "Willow, Jonah B"]
[Result "0-1"]
[ECO "C02"]
[WhiteElo "2147"]
[BlackElo "2343"]
[Annotator "NA"]
[PlyCount "62"]
[EventDate "2019.07.27"]
[EventType "swiss"]
[EventCountry "GBR"]
[SourceTitle "playchess.com"]
[Source "ChessBase"]
[SourceQuality "1"]
[TimeControl "40/5400+30:1800+30"]

1. e4 {[%emt 0:05:04]} e6 {[%emt 0:00:00]} 2. d4 {[%emt 0:02:27]} d5 {[%emt 0:00:00]} 3. e5 {[%emt 0:02:44]} c5 {[%emt 0:00:00]} 4. Nf3 {[%emt 0:01:37]} Nc6 {[%emt 0:01:07]} 5. Bd3 {[%emt 0:00:39]} cxd4 {[%emt 0:02:02]} 6. O-O {[%emt 0:00:13]} Nge7 {[%emt 0:04:01]} 7. Bf4 {[%emt 0:02:03]} Ng6 {[%emt 0:00:37]} 8. Bg3 {[%emt 0:00:17]} Be7 {[%emt 0:05:58]} 9. Re1 {[%emt 0:07:59]} Bd7 {[%emt 0:01:19]} 10. Nbd2 {[%emt 0:02:23]} Nb4 {[%emt 0:11:12]} 11. Bf1 {[%emt 0:15:02]} d3 {[%emt 0:11:00]} 12. cxd3 {[%emt 0:00:56]} Rc8 {[%emt 0:00:32]} 13. Rc1 {[%emt 0:25:39]} Rxc1 {[%emt 0:08:09]} 14. Qxc1 {[%emt 0:00:06]} Bb5 {[%emt 0:08:43]} 15. a3 {[%emt 0:05:47]} Nc6 {[%emt 0:03:00]} 16. d4 {[%emt 0:04:41]} Bxf1 {[%emt 0:03:45]} 17. Nxf1 {[%emt 0:00:18]} O-O {[%emt 0:03:29]} 18. Qd2 {[%emt 0:11:50]} Qb6 {[%emt 0:02:10]} 19. h4 {[%emt 0:00:47]} h5 {[%emt 0:02:13]} 20. Rd1 {[%emt 0:04:27]} Na5 {[%emt 0:17:34]} 21. Ne3 {[%emt 0:00:15]} Rc8 {[%emt 0:01:30]} 22. Kh2 {[%emt 0:01:07]} Qd8 {[%emt 0:00:28]} 23. Kh3 {[%emt 0:00:15]} Nc4 {[%emt 0:03:04]} 24. Nxc4 {[%emt 0:00:13]} Rxc4 {[%emt 0:00:02]} 25. Qd3 {[%emt 0:01:17]} Qb6 {[%emt 0:01:17]} 26. Rd2 {[%emt 0:00:26]} Rc1 {[%emt 0:00:19]} 27. Rc2 {[%emt 0:01:02]} Rh1+ {[%emt 0:00:57]} 28. Nh2 {[%emt 0:00:50]} Bxh4 {[%emt 0:04:38]} 29. Rc8+ {[%emt 0:00:15]} Bd8 {[%emt 0:00:01]} 30. Qe3 {[%emt 0:01:03]} Nf8 {[%emt 0:01:34]} 31. Qf4 {[%emt 0:00:34]} g5 {[%emt 0:00:15]} 0-1

[Event "106th British-ch 2019"]
[Site "Torquay"]
[Date "2019.08.02"]
[Round "7.15"]
[White "Pein, Malcolm"]
[Black "Holland, Chris Kd"]
[Result "1-0"]
[ECO "E69"]
[WhiteElo "2312"]
[BlackElo "2143"]
[Annotator "NA"]
[PlyCount "51"]
[EventDate "2019.07.27"]
[EventType "swiss"]
[EventCountry "GBR"]
[SourceTitle "playchess.com"]
[Source "ChessBase"]
[SourceQuality "1"]
[TimeControl "40/5400+30:1800+30"]

1. d4 {[%emt 0:00:00]} Nf6 {[%emt 0:00:35]} 2. c4 {[%emt 0:00:00]} g6 {[%emt 0:00:21]} 3. Nf3 {[%emt 0:00:07]} Bg7 {[%emt 0:00:05]} 4. g3 {[%emt 0:00:28]} O-O {[%emt 0:00:18]} 5. Bg2 {[%emt 0:00:07]} d6 {[%emt 0:00:11]} 6. O-O {[%emt 0:00:33]} c6 {[%emt 0:10:18]} 7. Nc3 {[%emt 0:00:16]} Qa5 {[%emt 0:00:37]} 8. e4 {[%emt 0:02:29]} e5 {[%emt 0:09:59]} 9. h3 {[%emt 0:00:58]} Nbd7 {[%emt 0:03:19]} 10. Re1 {[%emt 0:00:15]} Qb4 {[%emt 0:07:09]} 11. Bf1 {[%emt 0:06:36]} exd4 {[%emt 0:06:39]} 12. Nxd4 {[%emt 0:00:09]} Qb6 {[%emt 0:02:03]} 13. Be3 {[%emt 0:13:37]} Qc7 {[%emt 0:06:48]} 14. Bg2 {[%emt 0:06:44]} Re8 {[%emt 0:02:19]} 15. Qc2 {[%emt 0:08:54]} Nc5 {[%emt 0:07:24]} 16. Rad1 {[%emt 0:02:47]} Be6 {[%emt 0:04:39]} 17. b4 {[%emt 0:10:26]} Ncd7 18. Nxe6 {[%emt 0:06:43]} Rxe6 {[%emt 0:05:01]} 19. f4 {[%emt 0:00:00]} Rae8 20. Bf2 {[%emt 0:01:31]} Nb6 {[%emt 0:05:37]} 21. c5 {[%emt 0:00:00]} dxc5 {[%emt 0:00:00]} 22. bxc5 {[%emt 0:00:00]} Nc8 {[%emt 0:01:46]} 23. e5 {[%emt 0:00:00]} Nd7 {[%emt 0:00:29]} 24. Ne4 {[%emt 0:00:00]} R6e7 {[%emt 0:10:00]} 25. g4 {[%emt 0:04:53]} Nf8 {[%emt 0:03:04]} 26. Nd6 {[%emt 0:07:02]} 1-0